[Event "Late-Titled-Tuesday-Blitz-April-23-2024"]
[Site "Chess.com"]
[Date "2024.04.23"]
[Round "3"]
[White "akanga001"]
[Black "Artem_Koval"]
[Result "0-1"]
[WhiteElo "2145"]
[BlackElo "2549"]
[TimeControl "180+1"]
[EndTime "14:29:44 PDT"]
[Termination "Artem_Koval won on time"]

1. d4 {[%clk 0:03:00.9]} 1... d5 {[%clk 0:02:59.8]} 2. c4 {[%clk 0:03:00.5]}
2... e6 {[%clk 0:03:00.5]} 3. Nc3 {[%clk 0:03:00.2]} 3... Nf6 {[%clk 0:03:00.4]}
4. cxd5 {[%clk 0:03:00]} 4... exd5 {[%clk 0:03:01.3]} 5. Bg5 {[%clk 0:02:59.4]}
5... Be7 {[%clk 0:03:01]} 6. e3 {[%clk 0:02:59]} 6... c6 {[%clk 0:03:01.6]} 7.
Bd3 {[%clk 0:02:58.3]} 7... O-O {[%clk 0:03:01.9]} 8. Qc2 {[%clk 0:02:57.9]}
8... Nbd7 {[%clk 0:03:00.9]} 9. Nge2 {[%clk 0:02:54.8]} 9... h6 {[%clk
0:02:59.7]} 10. Bh4 {[%clk 0:02:54.5]} 10... Re8 {[%clk 0:02:58.9]} 11. Rb1
{[%clk 0:02:54]} 11... a5 {[%clk 0:02:58.5]} 12. a3 {[%clk 0:02:53.6]} 12... b5
{[%clk 0:02:47.8]} 13. O-O {[%clk 0:02:40.2]} 13... Nb6 {[%clk 0:02:37.2]} 14.
Bxf6 {[%clk 0:02:32.1]} 14... Bxf6 {[%clk 0:02:38.1]} 15. b3 {[%clk 0:02:27.9]}
15... Be7 {[%clk 0:02:31.7]} 16. Ra1 {[%clk 0:02:11.9]} 16... a4 {[%clk
0:02:25.4]} 17. bxa4 {[%clk 0:02:03.3]} 17... bxa4 {[%clk 0:02:16.3]} 18. Rfb1
{[%clk 0:01:50.5]} 18... Bd6 {[%clk 0:02:09.2]} 19. g3 {[%clk 0:01:48.9]} 19...
h5 {[%clk 0:02:02.9]} 20. Nf4 {[%clk 0:01:37.3]} 20... h4 {[%clk 0:02:02.6]} 21.
Be2 {[%clk 0:01:34.9]} 21... Nd7 {[%clk 0:01:55.4]} 22. Bd3 {[%clk 0:01:33]}
22... Nf6 {[%clk 0:01:55.3]} 23. Nce2 {[%clk 0:01:29.4]} 23... Bd7 {[%clk
0:01:35.6]} 24. Bf5 {[%clk 0:01:26]} 24... Ne4 {[%clk 0:01:09.8]} 25. Bxd7
{[%clk 0:01:16.4]} 25... Qxd7 {[%clk 0:01:10.7]} 26. Rb6 {[%clk 0:01:09.9]}
26... Rac8 {[%clk 0:00:46.4]} 27. Qxa4 {[%clk 0:00:58.3]} 27... g5 {[%clk
0:00:46.5]} 28. Nxd5 {[%clk 0:00:57.5]} 28... Ra8 {[%clk 0:00:42.3]} 29. Qxc6
{[%clk 0:00:54.8]} 29... Qg4 {[%clk 0:00:39.6]} 30. Nf6+ {[%clk 0:00:33]} 30...
Nxf6 {[%clk 0:00:36.2]} 31. Qxd6 {[%clk 0:00:31.3]} 31... Ne4 {[%clk 0:00:32.5]}
32. Qd5 {[%clk 0:00:05.7]} 32... Qxe2 {[%clk 0:00:22.9]} 33. Rf1 {[%clk
0:00:04.8]} 33... Kg7 {[%clk 0:00:14.6]} 34. Rb7 {[%clk 0:00:02.9]} 34... Qf3
{[%clk 0:00:12.7]} 0-1

[Event "Late-Titled-Tuesday-Blitz-April-23-2024"]
[Site "Chess.com"]
[Date "2024.04.23"]
[Round "3"]
[White "WoodlandMagic"]
[Black "stasOR4ik"]
[Result "1-0"]
[WhiteElo "2840"]
[BlackElo "2453"]
[TimeControl "180+1"]
[EndTime "14:29:45 PDT"]
[Termination "WoodlandMagic won on time"]

1. Nf3 {[%clk 0:03:00.9]} 1... d5 {[%clk 0:02:57]} 2. c4 {[%clk 0:03:00.4]} 2...
c6 {[%clk 0:02:56.9]} 3. g3 {[%clk 0:02:59.9]} 3... Nf6 {[%clk 0:02:57.2]} 4.
Bg2 {[%clk 0:02:59.8]} 4... Nbd7 {[%clk 0:02:57.5]} 5. O-O {[%clk 0:02:56.4]}
5... e6 {[%clk 0:02:57.3]} 6. b3 {[%clk 0:02:50.8]} 6... Be7 {[%clk 0:02:55]} 7.
Bb2 {[%clk 0:02:50.9]} 7... O-O {[%clk 0:02:55.7]} 8. Nc3 {[%clk 0:02:47.6]}
8... Re8 {[%clk 0:02:54.8]} 9. d4 {[%clk 0:02:46.5]} 9... Ne4 {[%clk 0:02:54.4]}
10. Nxe4 {[%clk 0:02:42.1]} 10... dxe4 {[%clk 0:02:55.3]} 11. Ne5 {[%clk
0:02:40.4]} 11... f5 {[%clk 0:02:54.3]} 12. Nxd7 {[%clk 0:02:30.4]} 12... Bxd7
{[%clk 0:02:53]} 13. f3 {[%clk 0:02:26.7]} 13... exf3 {[%clk 0:02:49.8]} 14.
exf3 {[%clk 0:02:15.6]} 14... Bf6 {[%clk 0:02:46.1]} 15. f4 {[%clk 0:02:12.6]}
15... a5 {[%clk 0:02:42.4]} 16. Qd2 {[%clk 0:02:07.4]} 16... a4 {[%clk
0:02:41.3]} 17. Rfd1 {[%clk 0:01:51.7]} 17... Qb6 {[%clk 0:02:35.7]} 18. Qe3
{[%clk 0:01:43.8]} 18... axb3 {[%clk 0:02:21.4]} 19. axb3 {[%clk 0:01:43.7]}
19... Kf7 {[%clk 0:02:06.6]} 20. Ba3 {[%clk 0:01:39.2]} 20... Red8 {[%clk
0:01:45.5]} 21. Bc5 {[%clk 0:01:28.5]} 21... Rxa1 {[%clk 0:01:39.8]} 22. Rxa1
{[%clk 0:01:26.5]} 22... Qxc5 {[%clk 0:01:39.6]} 23. dxc5 {[%clk 0:01:26.1]}
23... Bxa1 {[%clk 0:01:39.9]} 24. Qd2 {[%clk 0:01:06.7]} 24... Ke8 {[%clk
0:01:13.2]} 25. b4 {[%clk 0:01:04.5]} 25... Bc8 {[%clk 0:01:09.4]} 26. Qc2
{[%clk 0:00:58.5]} 26... Bd4+ {[%clk 0:01:03.2]} 27. Kf1 {[%clk 0:00:58.2]}
27... Be3 {[%clk 0:01:00.9]} 28. Qc3 {[%clk 0:00:43.3]} 28... Bd4 {[%clk
0:00:55.4]} 29. Qa3 {[%clk 0:00:41.7]} 29... e5 {[%clk 0:00:50.1]} 30. fxe5
{[%clk 0:00:39.5]} 30... Be6 {[%clk 0:00:48.9]} 31. Qb3 {[%clk 0:00:24.8]} 31...
Ke7 {[%clk 0:00:36.6]} 32. b5 {[%clk 0:00:22.4]} 32... Bxe5 {[%clk 0:00:24.3]}
33. bxc6 {[%clk 0:00:21.6]} 33... bxc6 {[%clk 0:00:24]} 34. Bxc6 {[%clk
0:00:20.8]} 34... Rd2 {[%clk 0:00:18.4]} 35. Bd5 {[%clk 0:00:18.2]} 35... Rxh2
{[%clk 0:00:06.1]} 36. Qb7+ {[%clk 0:00:16.4]} 36... Kf6 {[%clk 0:00:04.8]} 37.
Qc6 {[%clk 0:00:16]} 37... Bxg3 {[%clk 0:00:02.5]} 38. Qxe6+ {[%clk 0:00:15.8]}
38... Kg5 {[%clk 0:00:03.2]} 39. c6 {[%clk 0:00:12.8]} 39... f4 {[%clk
0:00:01.7]} 40. c7 {[%clk 0:00:12]} 1-0

[Event "Late-Titled-Tuesday-Blitz-April-23-2024"]
[Site "Chess.com"]
[Date "2024.04.23"]
[Round "3"]
[White "jaramsdal"]
[Black "Kratos031"]
[Result "0-1"]
[WhiteElo "2245"]
[BlackElo "2495"]
[TimeControl "180+1"]
[EndTime "14:29:46 PDT"]
[Termination "Kratos031 won by checkmate"]

1. e4 {[%clk 0:03:00.9]} 1... c5 {[%clk 0:02:58.3]} 2. Nf3 {[%clk 0:03:00.1]}
2... Nc6 {[%clk 0:02:58]} 3. d4 {[%clk 0:02:59.8]} 3... cxd4 {[%clk 0:02:58.2]}
4. Nxd4 {[%clk 0:03:00.4]} 4... e5 {[%clk 0:02:58.8]} 5. Nb5 {[%clk 0:02:59.4]}
5... d6 {[%clk 0:02:59.4]} 6. N1c3 {[%clk 0:02:54.8]} 6... a6 {[%clk 0:02:59.7]}
7. Na3 {[%clk 0:02:54]} 7... Be7 {[%clk 0:03:00.2]} 8. Be3 {[%clk 0:02:46.7]}
8... Nf6 {[%clk 0:02:50.6]} 9. Nc4 {[%clk 0:02:43.3]} 9... O-O {[%clk
0:02:49.7]} 10. Nb6 {[%clk 0:02:40.8]} 10... Rb8 {[%clk 0:02:49.6]} 11. Be2
{[%clk 0:02:32.3]} 11... Be6 {[%clk 0:02:48.5]} 12. O-O {[%clk 0:02:27.8]} 12...
Nd7 {[%clk 0:02:43.3]} 13. Nbd5 {[%clk 0:02:25.3]} 13... f5 {[%clk 0:02:39.9]}
14. Nxe7+ {[%clk 0:02:16.7]} 14... Qxe7 {[%clk 0:02:38.6]} 15. exf5 {[%clk
0:02:14.3]} 15... Bxf5 {[%clk 0:02:35.1]} 16. Nd5 {[%clk 0:01:59.4]} 16... Qd8
{[%clk 0:01:55.6]} 17. Bg4 {[%clk 0:01:56.2]} 17... Kh8 {[%clk 0:01:44.8]} 18.
Bxf5 {[%clk 0:01:49.6]} 18... Rxf5 {[%clk 0:01:43.4]} 19. Qg4 {[%clk 0:01:50.2]}
19... Qf8 {[%clk 0:01:38.9]} 20. Rad1 {[%clk 0:01:45.6]} 20... Re8 {[%clk
0:01:34]} 21. Nc7 {[%clk 0:01:37.1]} 21... Rc8 {[%clk 0:01:31.2]} 22. Ne6 {[%clk
0:01:33.7]} 22... Qf7 {[%clk 0:01:28.7]} 23. Nxg7 {[%clk 0:01:33.8]} 23... Rf6
{[%clk 0:01:19.4]} 24. Nh5 {[%clk 0:01:24]} 24... Rg6 {[%clk 0:01:19.2]} 25. Qh3
{[%clk 0:01:24.7]} 25... Rcg8 {[%clk 0:01:12]} 26. Ng3 {[%clk 0:01:24.2]} 26...
d5 {[%clk 0:01:00.8]} 27. c3 {[%clk 0:01:24.6]} 27... Nf6 {[%clk 0:00:47.3]} 28.
Qf5 {[%clk 0:01:21]} 28... Qe7 {[%clk 0:00:35]} 29. h4 {[%clk 0:01:12.8]} 29...
Ne4 {[%clk 0:00:31.7]} 30. Bg5 {[%clk 0:00:43.3]} 30... Nxg5 {[%clk 0:00:26.2]}
31. hxg5 {[%clk 0:00:41.1]} 31... Rxg5 {[%clk 0:00:27.1]} 32. Qf3 {[%clk
0:00:35.5]} 32... e4 {[%clk 0:00:25.8]} 33. Qe3 {[%clk 0:00:35.7]} 33... h5
{[%clk 0:00:25.1]} 34. Qf4 {[%clk 0:00:22.6]} 34... Rg4 {[%clk 0:00:24.7]} 35.
Qh6+ {[%clk 0:00:20.5]} 35... Qh7 {[%clk 0:00:24]} 36. Qxh7+ {[%clk 0:00:16]}
36... Kxh7 {[%clk 0:00:24.9]} 37. Rxd5 {[%clk 0:00:16.2]} 37... h4 {[%clk
0:00:25.4]} 38. Rd7+ {[%clk 0:00:11.5]} 38... Kh8 {[%clk 0:00:22.1]} 39. Nf5
{[%clk 0:00:10.3]} 39... Ne5 {[%clk 0:00:19]} 40. Rxb7 {[%clk 0:00:05]} 40...
Rxg2+ {[%clk 0:00:18.2]} 41. Kh1 {[%clk 0:00:05.3]} 41... Nf3 {[%clk 0:00:18.8]}
42. Ng3 {[%clk 0:00:02.1]} 42... Rh2# {[%clk 0:00:18.5]} 0-1

[Event "Late-Titled-Tuesday-Blitz-April-23-2024"]
[Site "Chess.com"]
[Date "2024.04.23"]
[Round "3"]
[White "olakenn"]
[Black "norwaytoadog"]
[Result "1-0"]
[WhiteElo "1924"]
[BlackElo "2333"]
[TimeControl "180+1"]
[EndTime "14:29:47 PDT"]
[Termination "olakenn won on time"]

1. e4 {[%clk 0:02:56.7]} 1... e5 {[%clk 0:02:59.2]} 2. Nf3 {[%clk 0:02:56.1]}
2... Nc6 {[%clk 0:02:59.6]} 3. Bb5 {[%clk 0:02:55.5]} 3... a6 {[%clk 0:02:59.5]}
4. Bxc6 {[%clk 0:02:55.8]} 4... dxc6 {[%clk 0:02:59.5]} 5. O-O {[%clk
0:02:55.5]} 5... Bg4 {[%clk 0:02:59.1]} 6. h3 {[%clk 0:02:55.2]} 6... h5 {[%clk
0:02:59.5]} 7. d3 {[%clk 0:02:54.6]} 7... Qf6 {[%clk 0:02:59.6]} 8. Nbd2 {[%clk
0:02:53.5]} 8... g5 {[%clk 0:02:43.2]} 9. d4 {[%clk 0:02:39.6]} 9... exd4 {[%clk
0:02:19.5]} 10. e5 {[%clk 0:02:33.4]} 10... Qg6 {[%clk 0:02:05.2]} 11. Re1
{[%clk 0:02:24.7]} 11... Bd7 {[%clk 0:01:46]} 12. Ne4 {[%clk 0:02:21.5]} 12...
O-O-O {[%clk 0:01:35.2]} 13. Nfxg5 {[%clk 0:02:17.4]} 13... Be7 {[%clk
0:01:26.8]} 14. h4 {[%clk 0:02:16.4]} 14... f6 {[%clk 0:01:20.2]} 15. exf6
{[%clk 0:02:15.7]} 15... Nxf6 {[%clk 0:01:20]} 16. Nxf6 {[%clk 0:02:07.3]} 16...
Bxf6 {[%clk 0:01:15.5]} 17. Qd3 {[%clk 0:01:58.2]} 17... Bf5 {[%clk 0:01:13.2]}
18. Qc4 {[%clk 0:01:54.5]} 18... Rhe8 {[%clk 0:00:46.7]} 19. Bf4 {[%clk
0:01:46.5]} 19... Bxc2 {[%clk 0:00:38.7]} 20. Ne6 {[%clk 0:01:38.7]} 20... Be4
{[%clk 0:00:22.5]} 21. Bg3 {[%clk 0:01:21.7]} 21... Bd5 {[%clk 0:00:20.7]} 22.
Qc5 {[%clk 0:01:12.6]} 22... Rxe6 {[%clk 0:00:18.4]} 23. Qa7 {[%clk 0:01:11.7]}
23... Rxe1+ {[%clk 0:00:16.2]} 24. Rxe1 {[%clk 0:01:11.2]} 24... Kd7 {[%clk
0:00:16]} 25. Qxb7 {[%clk 0:01:04]} 25... Rc8 {[%clk 0:00:15.2]} 26. Qxa6 {[%clk
0:01:01.7]} 26... d3 {[%clk 0:00:13.8]} 27. b4 {[%clk 0:00:31.5]} 27... Bxh4
{[%clk 0:00:12.8]} 28. b5 {[%clk 0:00:23.4]} 28... Bxg3 {[%clk 0:00:12.5]} 29.
fxg3 {[%clk 0:00:23.3]} 29... cxb5 {[%clk 0:00:11.3]} 30. Qxg6 {[%clk
0:00:21.6]} 30... d2 {[%clk 0:00:10.2]} 31. Rd1 {[%clk 0:00:20.9]} 31... Re8
{[%clk 0:00:09.3]} 32. Rxd2 {[%clk 0:00:20.6]} 32... Re1+ {[%clk 0:00:09.5]} 33.
Kh2 {[%clk 0:00:20.8]} 33... c6 {[%clk 0:00:08.9]} 34. Qxh5 {[%clk 0:00:20.5]}
34... Re6 {[%clk 0:00:08.1]} 35. g4 {[%clk 0:00:20.5]} 35... Re4 {[%clk
0:00:06.6]} 36. g5 {[%clk 0:00:20.4]} 36... Re5 {[%clk 0:00:06.2]} 37. Qh6
{[%clk 0:00:20.2]} 37... Re4 {[%clk 0:00:05.4]} 38. Qg7+ {[%clk 0:00:19.8]}
38... Kc8 {[%clk 0:00:04.2]} 39. Qf6 {[%clk 0:00:19.9]} 39... Rh4+ {[%clk
0:00:03.8]} 40. Kg1 {[%clk 0:00:19.6]} 40... Rg4 {[%clk 0:00:03.9]} 41. g6
{[%clk 0:00:19.7]} 41... Kb7 {[%clk 0:00:01.8]} 42. g7 {[%clk 0:00:20]} 42...
Kb6 {[%clk 0:00:01.6]} 43. Qf8 {[%clk 0:00:19.9]} 1-0

[Event "Late-Titled-Tuesday-Blitz-April-23-2024"]
[Site "Chess.com"]
[Date "2024.04.23"]
[Round "3"]
[White "SahibSinghKnight"]
[Black "Naruna_Chan"]
[Result "1-0"]
[WhiteElo "2632"]
[BlackElo "2443"]
[TimeControl "180+1"]
[EndTime "14:29:48 PDT"]
[Termination "SahibSinghKnight won on time"]

1. e4 {[%clk 0:03:00.9]} 1... c5 {[%clk 0:02:59.5]} 2. Nf3 {[%clk 0:03:01.2]}
2... Nc6 {[%clk 0:02:59.7]} 3. d4 {[%clk 0:03:01.8]} 3... cxd4 {[%clk 0:03:00]}
4. Nxd4 {[%clk 0:03:02.7]} 4... e5 {[%clk 0:03:00.5]} 5. Nb5 {[%clk 0:03:02.3]}
5... d6 {[%clk 0:03:00.9]} 6. N1c3 {[%clk 0:03:01.9]} 6... a6 {[%clk 0:03:01.5]}
7. Na3 {[%clk 0:03:02.6]} 7... b5 {[%clk 0:03:02.2]} 8. Nd5 {[%clk 0:03:03.3]}
8... Nce7 {[%clk 0:03:02.9]} 9. c4 {[%clk 0:03:03]} 9... Nxd5 {[%clk 0:03:02.9]}
10. exd5 {[%clk 0:03:03.5]} 10... b4 {[%clk 0:03:02.7]} 11. Qa4+ {[%clk
0:03:02.6]} 11... Bd7 {[%clk 0:02:59.8]} 12. Qxb4 {[%clk 0:03:03.1]} 12... Be7
{[%clk 0:02:56.3]} 13. Bd3 {[%clk 0:02:59.9]} 13... f5 {[%clk 0:02:56.4]} 14.
O-O {[%clk 0:02:52.7]} 14... e4 {[%clk 0:02:53.2]} 15. Be2 {[%clk 0:02:49.6]}
15... Nf6 {[%clk 0:02:53.1]} 16. Be3 {[%clk 0:02:47.4]} 16... O-O {[%clk
0:02:50.3]} 17. Qd2 {[%clk 0:02:46.7]} 17... Be8 {[%clk 0:02:43.3]} 18. Nc2
{[%clk 0:02:46.1]} 18... Nd7 {[%clk 0:02:17.3]} 19. Nd4 {[%clk 0:02:45.7]} 19...
Ne5 {[%clk 0:02:05.1]} 20. Ne6 {[%clk 0:02:44.3]} 20... Qd7 {[%clk 0:01:53.5]}
21. Nxf8 {[%clk 0:02:44.3]} 21... Bxf8 {[%clk 0:01:53.1]} 22. Bd4 {[%clk
0:02:44.5]} 22... Be7 {[%clk 0:01:49.8]} 23. c5 {[%clk 0:02:44.3]} 23... Bf6
{[%clk 0:01:48.3]} 24. c6 {[%clk 0:02:44.4]} 24... Qf7 {[%clk 0:01:40.8]} 25.
Rac1 {[%clk 0:02:43.4]} 25... f4 {[%clk 0:01:14.8]} 26. Qxf4 {[%clk 0:02:34.4]}
26... Qg6 {[%clk 0:01:07.9]} 27. Qg3 {[%clk 0:02:30.9]} 27... Qf7 {[%clk
0:00:45]} 28. c7 {[%clk 0:02:16.2]} 28... Rc8 {[%clk 0:00:44]} 29. Bb6 {[%clk
0:02:05.7]} 29... Bb5 {[%clk 0:00:37.9]} 30. Bxb5 {[%clk 0:01:52.2]} 30... axb5
{[%clk 0:00:38.8]} 31. Qh3 {[%clk 0:01:49.2]} 31... Qe8 {[%clk 0:00:36.1]} 32.
Rfe1 {[%clk 0:01:37.3]} 32... Nc4 {[%clk 0:00:34.5]} 33. Rxe4 {[%clk 0:01:34.5]}
33... Qf8 {[%clk 0:00:26]} 34. Qe6+ {[%clk 0:01:34.3]} 34... Kh8 {[%clk
0:00:25.7]} 35. Rexc4 {[%clk 0:00:46.4]} 35... bxc4 {[%clk 0:00:25.4]} 36. Rxc4
{[%clk 0:00:47.3]} 36... Bxb2 {[%clk 0:00:16.8]} 37. Rf4 {[%clk 0:00:46.8]}
37... Qg8 {[%clk 0:00:14]} 38. Rf7 {[%clk 0:00:41.6]} 38... Bf6 {[%clk
0:00:09.9]} 39. Rxf6 {[%clk 0:00:38.7]} 39... gxf6 {[%clk 0:00:08.8]} 40. Qxf6+
{[%clk 0:00:39]} 40... Qg7 {[%clk 0:00:09.4]} 41. Qd8+ {[%clk 0:00:39.8]} 41...
Qf8 {[%clk 0:00:08.8]} 42. Bd4+ {[%clk 0:00:34.6]} 42... Kg8 {[%clk 0:00:09]}
43. Qg5+ {[%clk 0:00:35.1]} 43... Kf7 {[%clk 0:00:08.8]} 44. Qf5+ {[%clk
0:00:35.7]} 44... Kg8 {[%clk 0:00:08.3]} 45. Qe6+ {[%clk 0:00:36.2]} 1-0

[Event "Late-Titled-Tuesday-Blitz-April-23-2024"]
[Site "Chess.com"]
[Date "2024.04.23"]
[Round "3"]
[White "Slovineanu"]
[Black "Ajedrez_con_German"]
[Result "0-1"]
[WhiteElo "2470"]
[BlackElo "2653"]
[TimeControl "180+1"]
[EndTime "14:29:50 PDT"]
[Termination "Ajedrez_con_German won on time"]

1. d4 {[%clk 0:03:00.9]} 1... a6 {[%clk 0:02:54.1]} 2. Nf3 {[%clk 0:02:57.9]}
2... e6 {[%clk 0:02:53.8]} 3. c4 {[%clk 0:02:55.8]} 3... d5 {[%clk 0:02:52]} 4.
b3 {[%clk 0:02:55.7]} 4... Nf6 {[%clk 0:02:51.7]} 5. e3 {[%clk 0:02:55.7]} 5...
c5 {[%clk 0:02:51.7]} 6. Bd3 {[%clk 0:02:55.5]} 6... cxd4 {[%clk 0:02:51.8]} 7.
exd4 {[%clk 0:02:55.7]} 7... Nc6 {[%clk 0:02:52.4]} 8. Bb2 {[%clk 0:02:54.1]}
8... Bb4+ {[%clk 0:02:51.3]} 9. Nbd2 {[%clk 0:02:54.2]} 9... O-O {[%clk
0:02:48]} 10. O-O {[%clk 0:02:54]} 10... dxc4 {[%clk 0:02:48.3]} 11. bxc4 {[%clk
0:02:53.6]} 11... Be7 {[%clk 0:02:48.5]} 12. Qe2 {[%clk 0:02:51.2]} 12... b6
{[%clk 0:02:47.2]} 13. Rfd1 {[%clk 0:02:49.8]} 13... Bb7 {[%clk 0:02:47.7]} 14.
Rac1 {[%clk 0:02:50.3]} 14... Rc8 {[%clk 0:02:44]} 15. Ne4 {[%clk 0:02:41.9]}
15... Nb4 {[%clk 0:02:38.7]} 16. Nxf6+ {[%clk 0:02:27.7]} 16... Bxf6 {[%clk
0:02:37.8]} 17. Bb1 {[%clk 0:02:28.3]} 17... Re8 {[%clk 0:02:29.5]} 18. a3
{[%clk 0:02:05]} 18... Nc6 {[%clk 0:02:29.2]} 19. d5 {[%clk 0:02:00.6]} 19...
exd5 {[%clk 0:02:15.3]} 20. Qd3 {[%clk 0:01:55.1]} 20... g6 {[%clk 0:02:12.6]}
21. Bxf6 {[%clk 0:01:49.3]} 21... Qxf6 {[%clk 0:02:12.4]} 22. cxd5 {[%clk
0:01:49.6]} 22... Ne5 {[%clk 0:02:05.2]} 23. Nxe5 {[%clk 0:01:49.4]} 23... Rxc1
{[%clk 0:02:01.9]} 24. Rxc1 {[%clk 0:01:46.9]} 24... Qxe5 {[%clk 0:02:02.3]} 25.
Rd1 {[%clk 0:01:42.9]} 25... Qxd5 {[%clk 0:01:37.3]} 26. Qxd5 {[%clk 0:01:39.5]}
26... Bxd5 {[%clk 0:01:37.3]} 27. f3 {[%clk 0:01:30]} 27... Be6 {[%clk
0:01:34.9]} 28. Rd6 {[%clk 0:01:24.4]} 28... Rb8 {[%clk 0:01:33.6]} 29. Bd3
{[%clk 0:01:22.4]} 29... a5 {[%clk 0:01:30.6]} 30. Bb5 {[%clk 0:01:10.2]} 30...
Kf8 {[%clk 0:01:30.3]} 31. Kf2 {[%clk 0:01:10.4]} 31... Ke7 {[%clk 0:01:30.6]}
32. Rc6 {[%clk 0:01:01.2]} 32... Rb7 {[%clk 0:01:29.5]} 33. Ba6 {[%clk
0:00:51.5]} 33... Rb8 {[%clk 0:01:29.7]} 34. Bb5 {[%clk 0:00:51.9]} 34... Bd5
{[%clk 0:01:25.5]} 35. Rc7+ {[%clk 0:00:48.6]} 35... Kd6 {[%clk 0:01:25.9]} 36.
Rd7+ {[%clk 0:00:45.3]} 36... Kc5 {[%clk 0:01:26.4]} 37. a4 {[%clk 0:00:45.9]}
37... Rb7 {[%clk 0:01:16.9]} 38. Rd8 {[%clk 0:00:33.6]} 38... Rc7 {[%clk
0:01:12.7]} 39. Ke3 {[%clk 0:00:32.4]} 39... Bc4 {[%clk 0:01:09.9]} 40. Be8
{[%clk 0:00:21.6]} 40... Re7+ {[%clk 0:00:58.5]} 41. Kf4 {[%clk 0:00:22]} 41...
Kb4 {[%clk 0:00:49.6]} 42. Rb8 {[%clk 0:00:20.5]} 42... Ka3 {[%clk 0:00:45.2]}
43. g4 {[%clk 0:00:15.4]} 43... Bb3 {[%clk 0:00:43.9]} 44. h4 {[%clk 0:00:11.8]}
44... Re6 {[%clk 0:00:43.8]} 45. g5 {[%clk 0:00:08.4]} 45... Bxa4 {[%clk
0:00:41]} 46. Bxf7 {[%clk 0:00:08.4]} 46... Re7 {[%clk 0:00:40.6]} 47. Bd5
{[%clk 0:00:07]} 47... b5 {[%clk 0:00:40.8]} 48. h5 {[%clk 0:00:05.9]} 48... b4
{[%clk 0:00:40.9]} 49. hxg6 {[%clk 0:00:03.7]} 49... hxg6 {[%clk 0:00:41.5]} 50.
Be4 {[%clk 0:00:04.1]} 50... Be8 {[%clk 0:00:38.4]} 51. Ra8 {[%clk 0:00:03.7]}
51... a4 {[%clk 0:00:38.1]} 0-1

[Event "Late-Titled-Tuesday-Blitz-April-23-2024"]
[Site "Chess.com"]
[Date "2024.04.23"]
[Round "3"]
[White "elmusmolamas"]
[Black "pifion"]
[Result "0-1"]
[WhiteElo "2489"]
[BlackElo "2680"]
[TimeControl "180+1"]
[EndTime "14:29:51 PDT"]
[Termination "pifion won by resignation"]

1. g3 {[%clk 0:03:00.9]} 1... d5 {[%clk 0:02:59.5]} 2. Bg2 {[%clk 0:03:01]} 2...
Nf6 {[%clk 0:02:58.6]} 3. c3 {[%clk 0:02:55.3]} 3... c6 {[%clk 0:02:56.5]} 4. d3
{[%clk 0:02:54.6]} 4... e5 {[%clk 0:02:53.1]} 5. d4 {[%clk 0:02:54]} 5... e4
{[%clk 0:02:52.6]} 6. f3 {[%clk 0:02:53]} 6... Bf5 {[%clk 0:02:51.5]} 7. Nh3
{[%clk 0:02:53.3]} 7... Nbd7 {[%clk 0:02:50]} 8. Nf2 {[%clk 0:02:54]} 8... exf3
{[%clk 0:02:44.8]} 9. exf3 {[%clk 0:02:54.9]} 9... Bd6 {[%clk 0:02:43.2]} 10.
O-O {[%clk 0:02:55.3]} 10... O-O {[%clk 0:02:43.1]} 11. Re1 {[%clk 0:02:54.8]}
11... Qc7 {[%clk 0:02:41.2]} 12. Nd2 {[%clk 0:02:55.4]} 12... h5 {[%clk
0:02:38.1]} 13. Nf1 {[%clk 0:02:55]} 13... Rfe8 {[%clk 0:02:36.3]} 14. Bg5
{[%clk 0:02:49.2]} 14... Nh7 {[%clk 0:02:32.2]} 15. Be3 {[%clk 0:02:47.5]} 15...
Ndf8 {[%clk 0:02:29.5]} 16. Qd2 {[%clk 0:02:46.4]} 16... Ne6 {[%clk 0:02:28.9]}
17. Re2 {[%clk 0:02:29.8]} 17... Re7 {[%clk 0:02:26.1]} 18. Rae1 {[%clk
0:02:30.4]} 18... Rae8 {[%clk 0:02:26.4]} 19. Nd3 {[%clk 0:02:27.6]} 19... h4
{[%clk 0:02:20.4]} 20. g4 {[%clk 0:02:26.4]} 20... Bxd3 {[%clk 0:02:20.5]} 21.
Qxd3 {[%clk 0:02:26.5]} 21... Nf4 {[%clk 0:02:19.3]} 22. Bxf4 {[%clk 0:02:24.8]}
22... Bxf4 {[%clk 0:02:20.2]} 23. h3 {[%clk 0:02:20.5]} 23... Ng5 {[%clk
0:02:19.1]} 24. Rxe7 {[%clk 0:01:56.6]} 24... Rxe7 {[%clk 0:02:18.7]} 25. Rxe7
{[%clk 0:01:57.5]} 25... Qxe7 {[%clk 0:02:18.9]} 26. Qf5 {[%clk 0:01:58.4]}
26... Qc7 {[%clk 0:02:19.1]} 27. Kf2 {[%clk 0:01:33.8]} 27... Kf8 {[%clk
0:02:18.2]} 28. Ne3 {[%clk 0:01:15.8]} 28... Ke7 {[%clk 0:02:02.5]} 29. c4
{[%clk 0:00:54.9]} 29... g6 {[%clk 0:02:02.8]} 30. Qd3 {[%clk 0:00:52.6]} 30...
dxc4 {[%clk 0:01:55.9]} 31. Nxc4 {[%clk 0:00:52.8]} 31... Kf8 {[%clk 0:01:49.6]}
32. Qa3+ {[%clk 0:00:49.9]} 32... Kg8 {[%clk 0:01:46.7]} 33. Qxa7 {[%clk
0:00:49.5]} 33... Bg3+ {[%clk 0:01:43.5]} 34. Kf1 {[%clk 0:00:49.3]} 34... Qe7
{[%clk 0:01:42.6]} 35. Qa5 {[%clk 0:00:44.4]} 35... Ne6 {[%clk 0:01:39.4]} 36.
Nd2 {[%clk 0:00:31.6]} 36... Nxd4 {[%clk 0:01:14]} 37. Ne4 {[%clk 0:00:31.3]}
37... Bf4 {[%clk 0:01:05.4]} 38. Qc5 {[%clk 0:00:21.7]} 38... Qd8 {[%clk
0:00:59.8]} 39. g5 {[%clk 0:00:17]} 39... Ne6 {[%clk 0:00:51.4]} 40. Qc2 {[%clk
0:00:14.7]} 40... Bxg5 {[%clk 0:00:45.5]} 41. Nxg5 {[%clk 0:00:13.9]} 41... Qxg5
{[%clk 0:00:45.4]} 42. f4 {[%clk 0:00:07]} 42... Nxf4 {[%clk 0:00:45.3]} 43. Qd2
{[%clk 0:00:05.7]} 43... Qg3 {[%clk 0:00:41.2]} 44. Qf2 {[%clk 0:00:05.3]} 44...
Qd3+ {[%clk 0:00:38.4]} 45. Kg1 {[%clk 0:00:05.9]} 45... Nxh3+ {[%clk
0:00:37.8]} 46. Bxh3 {[%clk 0:00:06]} 46... Qxh3 {[%clk 0:00:38.5]} 47. a4
{[%clk 0:00:05.9]} 47... Qg4+ {[%clk 0:00:37.1]} 48. Kh1 {[%clk 0:00:05.1]}
48... Qxa4 {[%clk 0:00:38]} 49. b3 {[%clk 0:00:05.1]} 49... Qe4+ {[%clk
0:00:36.6]} 50. Kh2 {[%clk 0:00:04.8]} 50... Qg4 {[%clk 0:00:36.4]} 51. Kh1
{[%clk 0:00:04.4]} 51... Qh3+ {[%clk 0:00:36.2]} 52. Kg1 {[%clk 0:00:04.3]}
52... Qg3+ {[%clk 0:00:36.8]} 53. Qxg3 {[%clk 0:00:04]} 53... hxg3 {[%clk
0:00:37.7]} 0-1